lending/lending_fUSD_20250130
["ID","MTS","AMOUNT","RATE_DAILY","PERIOD"]
[350924996,1738204247259,-1332.87,0.00020738,2]
[350924997,1738204247269,-3941.23,0.00020738,2]
[350924998,1738204247278,-1119.75,0.00020738,2]
[350924999,1738204247287,-500.0,0.00020738,2]
[350925000,1738204247297,-500.0,0.00020738,2]
[350925001,1738204247306,-500.0,0.00020738,2]
[350925002,1738204247315,-501.0,0.00020738,2]
[350925003,1738204247324,-578.37168623,0.00020752,4]
[350925004,1738204247334,-172.51881802,0.00020752,4]
[350925005,1738204247344,-305.78201659,0.00020752,4]
[350925006,1738204247354,-150.0,0.00020754,4]
[350925007,1738204247365,-1389.22,0.00020758,2]
[350925008,1738204247374,-191.9,0.00020759,2]
[350925009,1738204247384,-578.37168623,0.00020768,4]
[350925010,1738204247394,-172.51881802,0.00020768,4]
[350925011,1738204247404,-305.78201659,0.00020768,4]
[350925012,1738204247414,-155.78,0.00020776,2]
[350925013,1738204247423,-3798.97749234,0.00020779,2]
[350925014,1738204247434,-578.37168623,0.00020784,4]
[350925015,1738204247444,-172.51881802,0.00020784,4]
[350925016,1738204247455,-305.78201659,0.00020784,4]
[350925017,1738204247465,-150.0,0.00020792,4]
[350925018,1738204247476,-150.0,0.00020792,4]
[350925019,1738204247485,-150.0,0.00020792,4]
[350925020,1738204247495,-380.0,0.000208,2]
[350925021,1738204247505,-578.37168623,0.000208,4]
[350925022,1738204247515,-172.51881802,0.000208,4]
[350925023,1738204247526,-305.78201659,0.000208,4]
[350925024,1738204247535,-1034.63727057,0.00020813,2]
[350925025,1738204247545,-578.37168623,0.00020816,4]
[350925026,1738204247559,-172.51881802,0.00020816,4]
[350925027,1738204247570,-305.78201659,0.00020816,4]
[350925028,1738204247580,-500.0,0.00020817,7]
[350925029,1738204247591,-500.0,0.00020817,7]
[350925030,1738204247602,-150.0,0.0002083,4]
[350925031,1738204247612,-578.37168623,0.00020832,4]
[350925032,1738204247622,-172.51881802,0.00020832,4]
[350925033,1738204247632,-305.78201659,0.00020832,4]
[350925034,1738204247642,-500.0,0.00020838,2]
[350925035,1738204247652,-284.59,0.00020838,2]
[350925036,1738204247662,-738.87,0.00020838,2]
[350925037,1738204247672,-900.94,0.00020838,2]
[350925038,1738204247682,-500.0,0.00020838,2]
[350925039,1738204247692,-500.0,0.00020838,2]
[350925040,1738204247702,-584.86,0.00020838,2]
[350925041,1738204247712,-300.0,0.00020838,2]
[350925042,1738204247725,-500.0,0.00020838,2]
[350925043,1738204247735,-3566.96,0.00020838,2]
[350925044,1738204247745,-265.63279733,0.00020838,2]
[350925045,1738204247756,-527.25,0.00020838,2]
[350925046,1738204247765,-500.0,0.00020838,2]
[350925047,1738204247775,-500.0,0.00020838,2]
[350925048,1738204247786,-500.0,0.00020838,2]
[350925049,1738204247796,-150.0,0.00020847,2]
[350925050,1738204247808,-578.37168623,0.00020848,4]
[350925051,1738204247818,-172.51881802,0.00020848,4]
[350925052,1738204247828,-305.78201659,0.00020848,4]
[350925053,1738204247838,-6507.87962685,0.0002085,2]
[350925054,1738204247849,-332.56237647,0.0002085,2]
[350925055,1738204247860,-182.63682116,0.00020856,2]
[350925056,1738204247870,-177.26691729,0.00020856,3]
[350925057,1738204247881,-276.30032198,0.00020863,2]
[350925058,1738204247891,-578.37168623,0.00020864,4]
[350925059,1738204247902,-172.51881802,0.00020864,4]
[350925060,1738204247912,-305.78201659,0.00020864,4]
[350925061,1738204247922,-3798.97749234,0.00020867,2]
[350925062,1738204247931,-150.0,0.00020867,4]
[350925063,1738204247942,-400.0,0.0002087,2]
[350925064,1738204247952,-400.6869785,0.0002087,2]
[350925065,1738204247961,-400.0,0.0002087,2]
[350925066,1738204247971,-151.0,0.0002087,2]
[350925067,1738204247981,-10000.0,0.0002087,2]
[350925068,1738204247992,-10000.0,0.0002087,2]
[350925069,1738204248002,-10000.0,0.0002087,2]
[350925070,1738204248012,-180.648189,0.0002087,2]
[350925071,1738204248022,-10000.0,0.0002087,2]
[350925072,1738204248033,-180.648182,0.0002087,2]
[350925073,1738204248043,-500.0,0.00020873,2]
[350925074,1738204248053,-150.0,0.00020873,2]
[350925075,1738204248063,-500.0,0.00020875,2]
[350925076,1738204248074,-500.0,0.00020875,2]
[350925077,1738204248084,-580.67,0.00020875,2]
[350925078,1738204248094,-1332.87,0.00020875,2]
[350925079,1738204248108,-3941.23,0.00020875,2]
[350925080,1738204248118,-1119.75,0.00020875,2]
[350925081,1738204248128,-500.0,0.00020875,2]
[350925082,1738204248138,-500.0,0.00020875,2]
[350925083,1738204248148,-500.0,0.00020875,2]
[350925084,1738204248157,-578.37168623,0.0002088,4]
[350925085,1738204248167,-172.51881802,0.0002088,4]
[350925086,1738204248176,-305.78201659,0.0002088,4]
[350925087,1738204248186,-151.0,0.0002088,2]
[350925088,1738204248195,-491.325237,0.0002088,2]
[350925089,1738204248204,-491.325237,0.0002088,2]
[350925090,1738204248213,-578.37168623,0.00020896,4]
[350925091,1738204248224,-172.51881802,0.00020896,4]
[350925092,1738204248234,-305.78201659,0.00020896,4]
[350925093,1738204248243,-15147.01745568,0.00020897,2]
[350925094,1738204248253,-151.0,0.00020897,2]
[350925095,1738204248263,-151.77149,0.00020897,2]
[350925096,1738204248273,-151.0,0.00020897,2]
[350925097,1738204248283,-831.66237721,0.00020899,2]
[350925098,1738204248293,-150.0,0.00020899,2]
[350925099,1738204248302,-198.84982418,0.00020899,5]
[350925100,1738204248312,-500.0,0.00020899,2]
[350925101,1738204248322,-538253.36609934,0.000209,2]
[350925102,1738204248332,-23798.68896413,0.000209,2]
[350925103,1738204248342,-100138.0,0.000209,2]
[350925104,1738204248352,-19617.0,0.000209,2]
[350925105,1738204248361,-188525.03034579,0.000209,30]
[350925106,1738204248371,-15885.58028193,0.000209,2]
[350925107,1738204248381,-151.0,0.000209,2]
[350925108,1738204248390,-151.0,0.000209,2]
[350925109,1738204248400,-151.0,0.000209,2]
[350925110,1738204248409,-151.0,0.000209,2]
[350925111,1738204248419,-151.0,0.000209,2]
[350925112,1738204248429,-151.0,0.000209,2]
[350925113,1738204248439,-282.090846,0.000209,2]
[350925114,1738204248449,-170.84564,0.000209,2]
[350925115,1738204248458,-900.0,0.000209,2]
[350925116,1738204248468,-900.0,0.000209,2]
[350925117,1738204248478,-900.0,0.000209,2]
[350925118,1738204248488,-900.0,0.000209,2]
[350925119,1738204248498,-900.0,0.000209,2]
[350925120,1738204248509,-900.0,0.000209,2]
[350925121,1738204248518,-900.0,0.000209,2]
[350925122,1738204248529,-900.0,0.000209,2]
[350925123,1738204248539,-900.0,0.000209,2]
[350925124,1738204248549,-900.0,0.000209,2]
[350925125,1738204248559,-194.25855,0.000209,2]
[350925126,1738204248570,-491.325237,0.000209,2]
[350925127,1738204248579,-491.325246,0.000209,2]
[350925128,1738204248590,-900.0,0.000209,2]
[350925129,1738204248600,-900.0,0.000209,2]
[350925130,1738204248610,-900.0,0.000209,2]
[350925131,1738204248619,-900.0,0.000209,2]
[350925132,1738204248630,-900.0,0.000209,2]
[350925133,1738204248643,-900.0,0.000209,2]
[350925134,1738204248653,-900.0,0.000209,2]
[350925135,1738204248663,-900.0,0.000209,2]
[350925136,1738204248673,-900.0,0.000209,2]
[350925137,1738204248683,-900.0,0.000209,2]
[350925138,1738204248693,-150.0,0.00020905,4]
[350925139,1738204248703,-150.0,0.00020905,4]
[350925140,1738204248713,-1064.06742497,0.00020906,2]
[350925141,1738204248725,-1057.76600324,0.00020906,2]
[350925142,1738204248735,-1072.96800123,0.00020906,2]
[350925143,1738204248745,-578.37168623,0.00020912,4]
[350925144,1738204248755,-172.51881802,0.00020912,4]
[350925145,1738204248766,-305.78201659,0.00020912,4]
[350925146,1738204248777,-578.37168623,0.00020928,4]
[350925147,1738204248787,-172.51881802,0.00020928,4]
[350925148,1738204248799,-305.78201659,0.00020928,4]
[350925149,1738204248809,-4904.0,0.00020932,2]
[350925150,1738204248819,-585.63985848,0.00020933,2]
[350925151,1738204248831,-961.0985547,0.00020936,2]
[350925152,1738204248842,-308.5256018,0.00020936,2]
[350925153,1738204248853,-2182.3888035,0.00020936,2]
[350925154,1738204248864,-267.4532176,0.00020936,2]
[350925155,1738204248874,-150.0,0.00020943,4]
[350925156,1738204248885,-578.37168623,0.00020944,4]
[350925157,1738204248896,-172.51881802,0.00020944,4]
[350925158,1738204248906,-305.78201659,0.00020944,4]
[350925159,1738204248916,-501.0,0.0002095,2]
[350925160,1738204248926,-229452.51048975,0.0002095,2]
[350925161,1738204249055,-13040.97657437,0.0002095,2]
[350925162,1738204249070,-1458.84999932,0.0002095,2]
[350925163,1738204249084,-1210.55117983,0.0002095,2]
[350925164,1738204249097,-5992.79513547,0.0002095,2]
[350925165,1738204249114,-9337.25086476,0.0002095,2]
[350925166,1738204249128,-7492.74809411,0.0002095,2]
[350925167,1738204249140,-1415.95000002,0.0002095,2]
[350925168,1738204249152,-2315.9462,0.0002095,2]
[350925169,1738204249170,-566.84138598,0.0002095,2]
[350925170,1738204249234,-200.495722,0.00019879,2]
[350925171,1738204249246,-200.495722,0.0001988,2]
[350925172,1738204249257,-200.495722,0.00019966,2]
[350925173,1738204249268,-500.280519,0.0002,2]
[350925174,1738204249278,-200.495722,0.0002,2]
[350925175,1738204249290,-200.495722,0.0002,2]
[350925176,1738204249301,-200.495722,0.0002,2]
[350925177,1738204249311,-200.495722,0.0002,2]
[350925178,1738204249321,-200.495722,0.0002,2]
[350925179,1738204249331,-728665.037841,0.0002095,2]
[350925180,1738204249341,-3798.97749234,0.00020956,2]
[350925181,1738204249351,-2000.0,0.00020959,13]
[350925182,1738204249361,-2000.0,0.00020959,13]
[350925183,1738204249371,-2000.0,0.00020959,13]
[350925184,1738204249381,-2000.0,0.00020959,13]
[350925185,1738204249391,-2000.0,0.00020959,13]
[350925186,1738204249401,-2000.0,0.00020959,13]
[350925187,1738204249411,-2000.0,0.00020959,13]
[350925188,1738204249421,-2000.0,0.00020959,13]
[350925189,1738204249431,-2000.0,0.00020959,13]
[350925190,1738204249441,-2000.0,0.00020959,13]
[350925191,1738204249451,-2000.0,0.00020959,13]
[350925192,1738204249461,-2000.0,0.00020959,13]
[350925193,1738204249471,-2000.0,0.00020959,13]
[350925194,1738204249484,-2000.0,0.00020959,13]
[350925195,1738204249494,-2000.0,0.00020959,13]
[350925196,1738204249504,-2000.0,0.00020959,13]
[350925197,1738204249514,-2000.0,0.00020959,13]
[350925198,1738204249525,-2000.0,0.00020959,13]
[350925199,1738204249535,-2000.0,0.00020959,13]
[350925200,1738204249546,-2000.0,0.00020959,13]
[350925201,1738204249557,-2000.0,0.00020959,13]
[350925202,1738204249706,-2000.0,0.00020959,13]
[350925203,1738204249728,-2000.0,0.00020959,13]
[350925204,1738204249738,-2000.0,0.00020959,13]
[350925205,1738204249748,-2000.0,0.00020959,13]
[350925206,1738204249759,-2000.0,0.00020959,13]
[350925207,1738204249768,-2000.0,0.00020959,13]
[350925208,1738204249777,-2000.0,0.00020959,13]
[350925209,1738204249786,-2000.0,0.00020959,13]
[350925210,1738204249796,-2000.0,0.00020959,13]
[350925211,1738204249806,-2000.0,0.00020959,13]
[350925212,1738204249815,-2000.0,0.00020959,13]
[350925213,1738204249824,-2015.0,0.00020959,13]
[350925214,1738204249833,-2000.0,0.00020959,13]
[350925215,1738204249843,-2000.0,0.00020959,13]
[350925216,1738204249852,-2000.0,0.00020959,13]
[350925217,1738204249862,-2000.0,0.00020959,13]
[350925218,1738204249872,-2000.0,0.00020959,13]
[350925219,1738204249881,-2000.0,0.00020959,13]
[350925220,1738204249891,-2000.0,0.00020959,13]
[350925221,1738204249902,-2000.0,0.00020959,13]
[350925222,1738204249912,-2000.0,0.00020959,13]
[350925223,1738204249922,-2000.0,0.00020959,13]
[350925224,1738204249932,-2000.0,0.00020959,13]
[350925225,1738204249942,-2000.0,0.00020959,13]
[350925226,1738204249952,-1815.0,0.00020959,13]
[350925227,1738204249962,-578.37168623,0.0002096,4]
[350925228,1738204249971,-172.51881802,0.0002096,4]
[350925229,1738204249982,-305.78201659,0.0002096,4]
[350925230,1738204249992,-504.30813683,0.00020973,2]
[350925231,1738204250002,-500.0,0.00020975,2]
[350925232,1738204250012,-284.59,0.00020975,2]
[350925233,1738204250021,-738.87,0.00020975,2]
[350925234,1738204250031,-900.94,0.00020975,2]
[350925235,1738204250041,-500.0,0.00020975,2]
[350925236,1738204250050,-500.0,0.00020975,2]
[350925237,1738204250060,-584.86,0.00020975,2]
[350925238,1738204250069,-300.0,0.00020975,2]
[350925239,1738204250078,-643.11419899,0.00020975,2]
[350925240,1738204250088,-3566.96,0.00020975,2]
[350925241,1738204250097,-527.25,0.00020975,2]
[350925242,1738204250107,-500.0,0.00020975,2]
[350925243,1738204250117,-500.0,0.00020975,2]
[350925244,1738204250127,-500.0,0.00020975,2]
[350925245,1738204250136,-578.37168623,0.00020976,4]
[350925246,1738204250145,-172.51881802,0.00020976,4]
[350925247,1738204250155,-305.78201659,0.00020976,4]
[350925248,1738204250166,-150.0,0.00020981,4]
[350925249,1738204250175,-578.37168623,0.00020992,4]
[350925250,1738204250184,-172.51881802,0.00020992,4]
[350925251,1738204250195,-305.78201659,0.00020992,4]
[350925252,1738204250205,-1261.80625426,0.00021,2]
[350925253,1738204250215,-11046.82754887,0.00021,2]
[350925254,1738204250226,-201.22416793,0.00021,7]
[350925255,1738204250235,-23333.0,0.00021,10]
[350925256,1738204250245,-20000.0,0.00021,2]
[350925257,1738204250255,-900.0,0.00021,22]
[350925258,1738204250265,-613.5,0.00021,2]
[350925259,1738204250275,-578.37168623,0.00021008,4]
[350925260,1738204250284,-172.51881802,0.00021008,4]
[350925261,1738204250294,-305.78201659,0.00021008,4]
[350925262,1738204250304,-353.37681464,0.00021012,2]
[350925263,1738204250313,-500.0,0.00021012,2]
[350925264,1738204250322,-580.67,0.00021012,2]
[350925265,1738204250332,-1332.87,0.00021012,2]
[350925266,1738204250342,-3941.23,0.00021012,2]
[350925267,1738204250352,-1119.75,0.00021012,2]
[350925268,1738204250361,-500.0,0.00021012,2]
[350925269,1738204250371,-476.18476059,0.00021012,2]
[350925270,1738204250380,-500.0,0.00021012,2]
[350925271,1738204250390,-150.0,0.00021018,4]
[350925272,1738204250400,-578.37168623,0.00021024,4]
[350925273,1738204250409,-172.51881802,0.00021024,4]
[350925274,1738204250419,-305.78201659,0.00021024,4]
[350925275,1738204250428,-500.0,0.00021036,2]
[350925276,1738204250437,-150.0,0.00021036,2]
[350925277,1738204250447,-500.0,0.00021036,2]
[350925278,1738204250456,-578.37168623,0.0002104,4]
[350925279,1738204250465,-172.51881802,0.0002104,4]
[350925280,1738204250476,-305.78201659,0.0002104,4]
[350925281,1738204250486,-276.30032198,0.00021042,2]
[350925282,1738204250496,-3798.97749234,0.00021045,2]
[350925283,1738204250506,-578.37168623,0.00021056,4]
[350925284,1738204250516,-172.51881802,0.00021056,4]
[350925285,1738204250526,-305.78201659,0.00021056,4]
[350925286,1738204250535,-150.0,0.00021056,4]
[350925287,1738204250544,-578.37168623,0.00021072,4]
[350925288,1738204250554,-172.51881802,0.00021072,4]
[350925289,1738204250563,-305.78201659,0.00021072,4]
[350925290,1738204250572,-578.37168623,0.00021088,4]
[350925291,1738204250582,-172.51881802,0.00021088,4]
[350925292,1738204250591,-305.78201659,0.00021088,4]
[350925293,1738204250601,-500.0,0.00021091,7]
[350925294,1738204250610,-500.0,0.00021091,7]
[350925295,1738204250620,-150.0,0.00021094,4]
[350925296,1738204250630,-69266.15027194,0.000211,5]
[350925297,1738204250639,-822.16,0.000211,31]
[350925298,1738204250648,-822.16,0.000211,31]
[350925299,1738204250658,-822.16,0.000211,31]
[350925300,1738204250667,-822.16,0.000211,31]
[350925301,1738204250677,-822.16,0.000211,31]
[350925302,1738204250687,-822.16,0.000211,31]
[350925303,1738204250696,-822.16,0.000211,31]
[350925304,1738204250706,-822.16,0.000211,31]
[350925305,1738204250715,-822.16,0.000211,31]
[350925306,1738204250728,-822.16,0.000211,31]
[350925307,1738204250737,-822.16,0.000211,31]
[350925308,1738204250747,-822.16,0.000211,31]
[350925309,1738204250756,-822.16,0.000211,31]
[350925310,1738204250767,-822.16,0.000211,31]
[350925311,1738204250776,-822.16,0.000211,31]
[350925312,1738204250786,-822.16,0.000211,31]
[350925313,1738204250798,-578.37168623,0.00021104,4]
[350925314,1738204250807,-172.51881802,0.00021104,4]
[350925315,1738204250817,-305.78201659,0.00021104,4]
[350925316,1738204250826,-500.0,0.00021112,2]
[350925317,1738204250835,-284.59,0.00021112,2]
[350925318,1738204250844,-738.87,0.00021112,2]
[350925319,1738204250853,-900.94,0.00021112,2]
[350925320,1738204250863,-500.0,0.00021112,2]
[350925321,1738204250872,-500.0,0.00021112,2]
[350925322,1738204250881,-584.86,0.00021112,2]
[350925323,1738204250891,-300.0,0.00021112,2]
[350925324,1738204250902,-3566.96,0.00021112,2]
[350925325,1738204250912,-527.25,0.00021112,2]
[350925326,1738204250921,-251.57121594,0.00021112,2]
[350925327,1738204250932,-464.95331507,0.00021112,2]
[350925328,1738204250943,-500.0,0.00021112,2]
[350925329,1738204250952,-578.37168623,0.0002112,4]
[350925330,1738204250963,-172.51881802,0.0002112,4]
[350925331,1738204250972,-305.78201659,0.0002112,4]
[350925332,1738204250982,-150.0,0.00021131,4]
[350925333,1738204250992,-150.0,0.00021131,4]
[350925334,1738204251002,-3798.97749234,0.00021134,2]
[350925335,1738204251012,-578.37168623,0.00021136,4]
[350925336,1738204251020,-172.51881802,0.00021136,4]
[350925337,1738204251031,-305.78201659,0.00021136,4]
[350925338,1738204251041,-500.0,0.00021149,2]
[350925339,1738204251050,-580.67,0.00021149,2]
[350925340,1738204251060,-1332.87,0.00021149,2]
[350925341,1738204251069,-3941.23,0.00021149,2]
[350925342,1738204251078,-1119.75,0.00021149,2]
[350925343,1738204251088,-500.0,0.00021149,2]
[350925344,1738204251097,-500.0,0.00021149,2]
[350925345,1738204251107,-205.90160185,0.0002115,2]
[350925346,1738204251116,-578.37168623,0.00021152,4]
[350925347,1738204251125,-172.51881802,0.00021152,4]
[350925348,1738204251135,-305.78201659,0.00021152,4]
[350925349,1738204251144,-240.0,0.0002116,2]
[350925350,1738204251152,-501.0,0.00021161,2]
[350925351,1738204251161,-207.69268888,0.00021161,2]
[350925352,1738204251170,-578.37168623,0.00021168,4]
[350925353,1738204251180,-172.51881802,0.00021168,4]
[350925354,1738204251189,-305.78201659,0.00021168,4]
[350925355,1738204251199,-150.0,0.00021169,4]
[350925356,1738204251208,-150.0,0.00021173,2]
[350925357,1738204251217,-500.0,0.00021173,2]
[350925358,1738204251229,-6507.87962684,0.0002118,2]
[350925359,1738204251239,-332.56237646,0.0002118,2]
[350925360,1738204251249,-578.37168623,0.00021184,4]
[350925361,1738204251258,-172.51881802,0.00021184,4]
[350925362,1738204251268,-305.78201659,0.00021184,4]
[350925363,1738204251278,-150.0,0.00021186,2]
[350925364,1738204251288,-578.37168623,0.000212,4]
[350925365,1738204251299,-172.51881802,0.000212,4]
[350925366,1738204251309,-305.78201659,0.000212,4]
[350925367,1738204251319,-150.0,0.00021207,4]
[350925368,1738204251329,-578.37168623,0.00021216,4]
[350925369,1738204251338,-172.51881802,0.00021216,4]
[350925370,1738204251349,-305.78201659,0.00021216,4]
[350925371,1738204251358,-179946.50127299,0.0002122,2]
[350925372,1738204251368,-276.30032198,0.00021221,2]
[350925373,1738204251378,-3798.97749234,0.00021222,2]
[350925374,1738204251388,-578.37168623,0.00021232,4]
[350925375,1738204251397,-172.51881802,0.00021232,4]
[350925376,1738204251407,-305.78201659,0.00021232,4]
[350925377,1738204251416,-150.0,0.00021245,4]
[350925378,1738204251426,-578.37168623,0.00021248,4]
[350925379,1738204251435,-172.51881802,0.00021248,4]
[350925380,1738204251444,-305.78201659,0.00021248,4]
[350925381,1738204251453,-500.0,0.00021249,2]
[350925382,1738204251462,-284.59,0.00021249,2]
[350925383,1738204251471,-738.87,0.00021249,2]
[350925384,1738204251485,-900.94,0.00021249,2]
[350925385,1738204251496,-500.0,0.00021249,2]
[350925386,1738204251506,-500.0,0.00021249,2]
[350925387,1738204251516,-584.86,0.00021249,2]
[350925388,1738204251525,-3566.96,0.00021249,2]
[350925389,1738204251535,-527.25,0.00021249,2]
[350925390,1738204251545,-500.0,0.00021249,2]
[350925391,1738204251554,-578.37168623,0.00021264,4]
[350925392,1738204251564,-172.51881802,0.00021264,4]
[350925393,1738204251574,-305.78201659,0.00021264,4]
[350925394,1738204251583,-578.37168623,0.0002128,4]
[350925395,1738204251593,-172.51881802,0.0002128,4]
[350925396,1738204251603,-305.78201659,0.0002128,4]
[350925397,1738204251612,-150.0,0.00021282,4]
[350925398,1738204251623,-500.0,0.00021286,2]
[350925399,1738204251632,-580.67,0.00021286,2]
[350925400,1738204251643,-1332.87,0.00021286,2]
[350925401,1738204251652,-3941.23,0.00021286,2]
[350925402,1738204251662,-1119.75,0.00021286,2]
[350925403,1738204251672,-500.0,0.00021286,2]
[350925404,1738204251683,-500.0,0.00021286,2]
[350925405,1738204251694,-578.37168623,0.00021296,4]
[350925406,1738204251704,-172.51881802,0.00021296,4]
[350925407,1738204251715,-305.78201659,0.00021296,4]
[350925408,1738204251730,-64821.47825527,0.000213,2]
[350925409,1738204251740,-351.28212752,0.000213,2]
[350925410,1738204251750,-155.78,0.00021309,2]
[350925411,1738204251760,-150.0,0.0002131,2]
[350925412,1738204251772,-500.0,0.0002131,2]
[350925413,1738204251783,-3798.97749234,0.00021311,2]
[350925414,1738204251793,-578.37168623,0.00021312,4]
[350925415,1738204251804,-172.51881802,0.00021312,4]
[350925416,1738204251815,-305.78201659,0.00021312,4]
[350925417,1738204251824,-150.0,0.0002132,4]
[350925418,1738204251834,-578.37168623,0.00021328,4]
[350925419,1738204251843,-172.51881802,0.00021328,4]
[350925420,1738204251853,-305.78201659,0.00021328,4]
[350925421,1738204251863,-578.37168623,0.00021344,4]
[350925422,1738204251872,-172.51881802,0.00021344,4]
[350925423,1738204251881,-305.78201659,0.00021344,4]
[350925424,1738204251891,-150.0,0.00021358,4]
[350925425,1738204251901,-150.0,0.00021358,4]
[350925426,1738204251911,-578.37168623,0.0002136,4]
[350925427,1738204251920,-172.51881802,0.0002136,4]
[350925428,1738204251929,-305.78201659,0.0002136,4]
[350925429,1738204251938,-500.0,0.00021365,7]
[350925430,1738204251947,-500.0,0.00021365,7]
[350925431,1738204251957,-501.0,0.00021373,2]
[350925432,1738204251967,-578.37168623,0.00021376,4]
[350925433,1738204251976,-172.51881802,0.00021376,4]
[350925434,1738204251986,-305.78201659,0.00021376,4]
[350925435,1738204251996,-3636.0,0.0002138,10]
[350925436,1738204252006,-500.0,0.00021386,2]
[350925437,1738204252017,-284.59,0.00021386,2]
[350925438,1738204252027,-738.87,0.00021386,2]
[350925439,1738204252036,-900.94,0.00021386,2]
[350925440,1738204252046,-500.0,0.00021386,2]
[350925441,1738204252056,-500.0,0.00021386,2]
[350925442,1738204252066,-584.86,0.00021386,2]
[350925443,1738204252076,-3566.96,0.00021386,2]
[350925444,1738204252085,-527.25,0.00021386,2]
[350925445,1738204252095,-500.0,0.00021386,2]
[350925446,1738204252105,-578.37168623,0.00021392,4]
[350925447,1738204252115,-172.51881802,0.00021392,4]
[350925448,1738204252124,-305.78201659,0.00021392,4]
[350925449,1738204252134,-150.0,0.00021395,4]
[350925450,1738204252144,-2299.77,0.000214,30]
[350925451,1738204252153,-14534.16852037,0.000214,2]
[350925452,1738204252162,-276.30032198,0.000214,2]
[350925453,1738204252172,-3798.97749234,0.000214,2]
[350925454,1738204252181,-578.37168623,0.00021408,4]
[350925455,1738204252191,-172.51881802,0.00021408,4]
[350925456,1738204252201,-305.78201659,0.00021408,4]
[350925457,1738204252211,-1050.66343243,0.00021421,2]
[350925458,1738204252220,-250.0,0.00021421,2]
[350925459,1738204252232,-500.0,0.00021423,2]
[350925460,1738204252242,-580.67,0.00021423,2]
[350925461,1738204252252,-1332.87,0.00021423,2]
[350925462,1738204252262,-3941.23,0.00021423,2]
[350925463,1738204252272,-1119.75,0.00021423,2]
[350925464,1738204252281,-500.0,0.00021423,2]
[350925465,1738204252290,-500.0,0.00021423,2]
[350925466,1738204252300,-578.37168623,0.00021424,4]
[350925467,1738204252309,-172.51881802,0.00021424,4]
[350925468,1738204252318,-305.78201659,0.00021424,4]
[350925469,1738204252327,-150.0,0.00021433,4]
[350925470,1738204252337,-578.37168623,0.0002144,4]
[350925471,1738204252347,-172.51881802,0.0002144,4]
[350925472,1738204252356,-305.78201659,0.0002144,4]
[350925473,1738204252365,-231.65802559,0.00021447,2]
[350925474,1738204252374,-500.0,0.00021447,2]
[350925475,1738204252383,-150.0,0.00021454,2]
[350925476,1738204252393,-578.37168623,0.00021456,4]
[350925477,1738204252402,-172.51881802,0.00021456,4]
[350925478,1738204252412,-305.78201659,0.00021456,4]
[350925479,1738204252421,-150.0,0.00021471,4]
[350925480,1738204252431,-578.37168623,0.00021472,4]
[350925481,1738204252440,-172.51881802,0.00021472,4]
[350925482,1738204252449,-305.78201659,0.00021472,4]
[350925483,1738204252459,-1923.4565,0.00021476,2]
[350925484,1738204252468,-2000.87787855,0.0002148,2]
[350925485,1738204252478,-975.6457613,0.00021485,2]
[350925486,1738204252487,-990.1929679,0.00021485,2]
[350925487,1738204252497,-1004.7401745,0.00021485,2]
[350925488,1738204252506,-1019.2873811,0.00021485,2]
[350925489,1738204252515,-313.2987642,0.00021485,2]
[350925490,1738204252526,-318.0719266,0.00021485,2]
[350925491,1738204252535,-322.845089,0.00021485,2]
[350925492,1738204252545,-327.6182514,0.00021485,2]
[350925493,1738204252555,-2225.1631209,0.00021485,2]
[350925494,1738204252564,-2267.9374382,0.00021485,2]
[350925495,1738204252574,-2310.7117555,0.00021485,2]